bitfinex/quotes_SOLUSD_20240714
["timestamp","ask_amount","ask_price","bid_price","bid_amount"]
[1720918382550,6.4657,145.03,144.93,46.37963442]
[1720918382752,6.4657,145.03,144.94,20.0]
[1720918382911,6.4657,145.03,144.95,1.3793591]
[1720918383433,6.4657,145.03,144.94,21.37960794]
[1720918384019,6.4657,145.03,144.94,1.37960794]
[1720918384235,15.675,145.02,144.88,0.8347028]
[1720918384544,15.675,145.02,144.89,1.37988278]
[1720918385824,15.675,145.02,144.9,22.42]
[1720918386319,15.675,145.02,144.91,1.37985373]
[1720918386519,15.675,145.02,144.9,22.42]
[1720918386829,15.675,145.02,144.91,20.0]
[1720918387014,15.675,145.02,144.88,43.2547028]
[1720918387221,15.675,145.02,144.89,46.37984864]
[1720918387422,15.675,145.02,144.9,21.37984826]
[1720918387937,15.675,145.02,144.91,45.0]
[1720918388140,15.675,145.02,144.92,20.0]
[1720918388316,6.4657,145.01,144.92,20.0]
[1720918388511,60.675,145.0,144.89,22.42]
[1720918388723,6.4657,144.99,144.9,1.38005239]
[1720918389518,6.4657,144.99,144.9,23.80005239]
[1720918389928,6.4657,144.99,144.91,65.0]
[1720918390128,6.4657,144.99,144.92,1.37973377]
[1720918390344,6.4657,144.99,144.91,65.0]
[1720918391440,6.4657,144.99,144.91,66.37973657]
[1720918392547,6.4657,144.99,144.92,22.42]
[1720918392752,6.4657,145.03,144.94,22.42]
[1720918393046,6.4657,145.03,144.97,22.42]
[1720918393239,6.4657,145.03,144.98,21.3792628]
[1720918393444,6.4657,145.03,144.99,1.37917021]
[1720918394417,6.4657,145.03,144.98,20.0]
[1720918394635,6.4657,145.03,144.92,43.79921172]
[1720918394829,6.4657,145.03,144.92,42.42]
[1720918395034,6.4657,145.03,144.9,22.42]
[1720918395230,15.675,145.02,144.9,22.42]
[1720918395434,15.675,145.02,144.91,1.3797906]
[1720918395644,15.675,145.02,144.92,22.42]
[1720918395940,15.675,145.02,144.93,1.37928357]
[1720918396116,15.675,145.02,144.92,22.42]
[1720918396320,15.675,145.02,144.93,1.37962544]
[1720918396516,15.675,145.02,144.91,22.42]
[1720918396768,15.675,145.02,144.92,21.37963287]
[1720918397236,15.675,145.02,144.92,20.0]
[1720918397444,15.675,145.02,144.93,1.37968535]
[1720918398151,15.675,145.02,144.91,22.42]
[1720918398464,6.4356,145.01,144.92,1.37979881]
[1720918399823,6.4356,145.01,144.92,46.37979881]
[1720918400027,6.4356,145.01,144.93,20.0]
[1720918400334,6.4356,145.01,144.94,46.37955746]
[1720918400537,6.4356,145.01,144.94,1.37955746]
[1720918400722,6.4356,145.01,144.93,21.37965851]
[1720918400918,6.4356,145.01,144.93,20.0]
[1720918401121,6.4356,145.01,144.92,21.37978872]
[1720918401347,6.4356,145.01,144.93,1.37973602]
[1720918401552,6.4356,145.01,144.93,46.37973602]
[1720918401797,6.4356,145.01,144.94,20.0]
[1720918402053,6.4356,145.01,144.95,1.37943515]
[1720918402222,6.4356,145.01,144.96,1.37954017]
[1720918402418,6.4356,145.01,144.95,46.37952045]
[1720918402639,6.4356,145.01,144.96,1.37937228]
[1720918403035,6.4356,145.01,144.95,45.0]
[1720918403242,6.4356,145.01,144.94,20.0]
[1720918403447,6.4356,145.01,144.92,20.0]
[1720918403645,6.4356,145.01,144.93,45.0]
[1720918403847,6.4356,145.01,144.94,20.0]
[1720918404353,15.9323,145.0,144.88,24.63453487]
[1720918404542,15.9323,145.0,144.89,20.0]
[1720918404847,15.9323,145.0,144.9,1.37991805]
[1720918405646,15.9323,145.0,144.9,46.37991805]
[1720918405948,15.9323,145.0,144.91,20.0]
[1720918406246,15.9323,145.0,144.88,23.2547028]
[1720918406443,6.4356,144.99,144.88,23.2547028]
[1720918408773,6.4356,144.99,144.89,1.3799817]
[1720918408986,6.4356,144.99,144.91,22.42]
[1720918409158,6.4356,144.99,144.92,66.37960098]
[1720918409481,6.4356,144.99,144.93,1.37967211]
[1720918409776,6.4356,144.99,144.92,65.0]
[1720918409973,6.4356,144.99,144.92,20.0]
[1720918410172,6.4356,144.99,144.89,21.37994658]
[1720918410381,6.4356,144.99,144.9,1.37990358]
[1720918411268,6.4356,144.99,144.91,22.42]
[1720918411467,6.4356,144.99,144.92,66.37968309]
[1720918411656,6.4356,144.99,144.93,1.37956501]
[1720918415878,6.4356,144.99,144.93,23.79956501]
[1720918416175,6.4356,144.99,144.94,66.37950947]
[1720918417379,15.9323,145.0,144.94,66.37950947]
[1720918417563,6.3553,145.03,144.96,22.42]
[1720918417762,6.3553,145.03,144.97,66.37910748]
[1720918418273,6.3553,145.07,144.97,66.37910748]
[1720918418480,6.3553,145.07,144.99,22.42]
[1720918418656,6.3553,145.07,145.0,66.37887098]
[1720918418856,6.3553,145.07,145.0,20.0]
[1720918419678,6.3553,145.07,145.01,1.37910189]
[1720918419878,6.3553,145.07,144.98,1.37902278]
[1720918420083,6.3553,145.07,144.99,1.37902278]
[1720918420288,6.3553,145.07,144.99,21.37902278]
[1720918421361,6.3553,145.07,145.0,45.0]
[1720918421561,6.3553,145.07,145.01,20.0]
[1720918422594,6.3553,145.07,144.97,20.0]
[1720918422762,6.3553,145.07,144.98,45.0]
[1720918422957,6.3553,145.07,144.99,21.37902383]
[1720918423264,6.3553,145.07,144.98,1.37902383]
[1720918423569,6.3553,145.07,144.95,23.79902383]
[1720918423883,6.3553,145.07,144.96,1.37912654]
[1720918424589,6.3553,145.07,144.96,65.0]
[1720918425182,6.3553,145.07,144.97,1.37912288]
[1720918425754,6.3553,145.07,144.96,20.0]
[1720918425956,15.9295,145.06,144.97,1.37919257]
[1720918426177,6.3553,145.07,144.9,16.4017]
[1720918426178,15.9295,145.04,144.9,16.4017]
[1720918426490,15.9295,145.04,144.91,23.79945302]
[1720918427178,6.3553,145.03,144.91,22.42]
[1720918427485,6.3553,145.03,144.9,59.5617]
[1720918427678,6.3553,145.03,144.93,22.42]
[1720918428184,6.3553,145.03,144.94,1.37850874]
[1720918428387,6.3553,145.03,144.94,46.37850874]
[1720918428594,6.3553,145.03,144.95,20.0]
[1720918428764,6.3553,145.03,144.96,46.37908581]
[1720918428965,6.3553,145.03,144.97,20.0]
[1720918429175,6.3553,145.03,144.98,1.3790984]
[1720918429379,6.3553,145.03,144.97,20.0]
[1720918429886,6.3553,145.03,144.97,21.37575097]
[1720918431285,6.3553,145.03,144.98,45.0]
[1720918431487,6.3553,145.03,144.99,21.37901587]
[1720918431680,6.3553,145.03,145.0,45.0]
[1720918432293,6.3553,145.03,144.99,20.0]
[1720918432472,6.3553,145.03,144.94,22.42]
[1720918432671,6.3553,145.03,144.95,66.3792205]
[1720918432871,15.9295,145.02,144.87,30.55135791]
[1720918433173,15.9295,145.02,144.88,29.4184028]
[1720918433964,15.9295,145.02,144.88,23.2547028]
[1720918434459,15.9295,145.02,144.89,20.0]
[1720918434873,6.3553,145.01,144.89,20.0]
[1720918435682,6.3553,145.01,144.9,45.0]
[1720918435874,6.3553,145.01,144.91,20.0]
[1720918436202,6.3553,145.01,144.92,46.37970684]
[1720918436506,6.3553,145.01,144.93,20.0]
[1720918437873,6.3553,145.01,144.93,21.37970518]
[1720918438284,6.3553,145.01,144.93,20.0]
[1720918438795,6.3553,145.01,144.93,21.37970392]
[1720918439986,6.3553,145.01,144.94,45.0]
[1720918440386,6.3553,145.01,144.93,20.0]
[1720918440685,6.3553,145.01,144.92,20.0]
[1720918440889,6.3553,145.01,144.93,45.0]
[1720918441209,6.3553,145.01,144.94,20.0]
[1720918441709,6.3553,145.01,144.93,1.17387126]
[1720918441915,6.3553,145.01,144.94,1.37942389]
[1720918442096,6.3553,145.01,144.94,21.37942389]
[1720918442297,6.3553,145.01,144.94,20.0]
[1720918442609,6.3553,145.01,144.95,46.37931685]
[1720918442781,6.3553,145.01,144.96,20.0]
[1720918442981,6.3553,145.01,144.97,46.37922845]
[1720918443200,6.3553,145.01,144.97,45.0]
[1720918444805,15.9295,145.02,144.98,1.37919487]
[1720918445007,6.5832,145.04,144.99,1.37909079]
[1720918445308,6.5832,145.04,144.99,46.37909079]
[1720918445510,6.5832,145.04,145.0,20.0]
[1720918445717,6.5832,145.04,145.01,1.37889934]
[1720918446005,6.5832,145.04,145.02,1.37890019]
[1720918446209,6.5832,145.04,145.0,20.0]
[1720918446419,6.5832,145.04,145.0,20.73270665]
[1720918446716,6.5832,145.04,144.97,21.37833145]
[1720918446929,6.5832,145.04,144.98,45.0]
[1720918447086,6.5832,145.04,144.99,20.0]
[1720918447286,6.5832,145.04,145.0,1.37905885]
[1720918447990,6.5832,145.04,145.0,46.37905885]
[1720918448188,6.5832,145.04,145.01,20.0]
[1720918448885,6.5832,145.04,144.95,22.42]
[1720918449082,6.5832,145.04,144.96,45.0]
[1720918450730,6.5832,145.04,144.97,20.0]
[1720918451522,6.5832,145.04,144.98,46.37918161]
[1720918451838,6.5832,145.04,144.99,20.0]
[1720918451996,6.5832,145.04,145.0,1.37901628]
[1720918452315,6.5832,145.04,145.0,46.37901628]
[1720918452523,6.5832,145.04,145.01,20.0]
[1720918452885,6.5832,145.04,145.01,21.37891905]
[1720918453308,6.5832,145.04,145.02,1.37892073]
[1720918454126,30.0,145.03,145.01,20.0]
[1720918454311,30.0,145.03,145.01,21.378978]
[1720918455027,30.0,145.03,145.01,20.0]
[1720918456206,30.0,145.03,144.98,21.37914287]
[1720918456412,30.0,145.03,144.95,22.42]
[1720918456914,30.0,145.03,144.96,1.34032934]
[1720918457114,30.0,145.03,144.94,22.42]
[1720918458106,30.0,145.03,144.91,6.5049]
[1720918458510,30.0,145.03,144.94,1.3794657]
[1720918459026,16.2708,145.02,144.94,1.3794657]
[1720918459233,6.1879,144.99,144.9,38.414]
[1720918459541,6.1879,144.99,144.9,22.42]
[1720918460032,6.1879,144.99,144.91,1.37969522]
[1720918460232,30.0,144.97,144.91,1.37969522]
[1720918460727,30.0,144.97,144.91,21.37969522]
[1720918462133,30.0,144.97,144.92,45.0]
[1720918462437,30.0,144.97,144.93,1.37964616]
[1720918462636,30.0,144.97,144.93,21.37964616]
[1720918464431,30.0,144.97,144.93,20.0]
[1720918464627,30.0,144.97,144.91,21.37935916]
[1720918465332,30.0,144.97,144.91,1.37935916]
[1720918466110,30.0,144.97,144.91,21.37935916]
[1720918467934,30.0,144.97,144.91,20.0]
[1720918468737,30.0,144.97,144.92,1.37976658]
[1720918470132,30.0,144.97,144.91,20.0]
[1720918470531,30.0,144.97,144.92,46.37976681]
[1720918470715,30.0,144.97,144.93,21.3795637]
[1720918470910,30.0,144.97,144.94,45.0]
[1720918471120,30.0,144.97,144.95,20.0]
[1720918472343,30.0,144.97,144.92,21.37959673]
[1720918472538,6.1879,144.99,144.93,45.0]
[1720918473016,6.1879,144.99,144.94,20.0]
[1720918473221,6.1879,144.99,144.95,45.0]
[1720918473419,6.1879,144.99,144.96,20.0]
[1720918474311,6.1879,144.99,144.96,21.37944367]
[1720918474514,6.1879,144.99,144.92,21.37945206]
[1720918474732,6.1879,144.99,144.93,46.37945577]
[1720918474908,6.1879,144.99,144.94,20.0]
[1720918475113,6.1879,144.99,144.95,46.37937121]
[1720918475428,6.1879,144.99,144.96,21.3793741]
[1720918478442,6.1879,144.99,144.96,20.0]
[1720918479625,2.75139758,145.05,144.92,22.42]
[1720918479626,6.3326,145.04,144.97,23.79945601]
[1720918479837,6.3326,145.04,144.98,45.0]
[1720918480032,16.1734,145.06,144.99,21.37901205]
[1720918480328,16.1734,145.06,145.0,45.0]
[1720918480531,16.1734,145.06,145.01,1.37888056]
[1720918480734,16.1734,145.06,145.02,1.37890981]
[1720918481252,16.1734,145.06,145.01,20.0]
[1720918481426,16.1734,145.06,145.02,1.37889901]
[1720918481628,16.1734,145.06,145.01,20.0]
[1720918481937,16.1734,145.06,144.97,21.37903]
[1720918482255,16.1734,145.06,144.98,45.0]
[1720918482432,16.1734,145.06,144.99,21.37899878]
[1720918482624,16.1734,145.06,145.0,45.0]
[1720918482827,16.1734,145.06,145.01,21.37890682]
[1720918486930,16.1734,145.06,144.97,21.37891864]
[1720918487142,16.1734,145.06,144.97,1.37891864]
[1720918487822,16.1734,145.06,144.98,1.37916849]
[1720918488130,16.1734,145.06,144.95,1.37920426]
[1720918488335,16.1734,145.06,144.96,1.37921788]
[1720918488534,16.1734,145.06,144.96,21.37921788]
[1720918488739,16.1734,145.06,144.97,45.0]
[1720918488932,16.1734,145.06,144.94,22.42]
[1720918489553,16.1734,145.06,144.95,1.37928424]
[1720918490045,16.1734,145.06,144.95,46.37928424]
[1720918490446,16.1734,145.06,144.96,20.0]
[1720918490652,16.1734,145.06,144.97,46.37912881]
[1720918490859,16.1734,145.06,144.98,20.0]
[1720918491028,16.1734,145.06,144.99,1.37904006]
[1720918491552,16.1734,145.06,144.99,45.0]
[1720918491758,16.1734,145.06,145.0,1.37894519]
[1720918492053,16.1734,145.06,144.98,20.0]
[1720918492631,11.21,145.04,144.99,11.21]
[1720918493927,11.21,145.04,144.99,12.58918788]
[1720918494132,16.1734,145.06,145.03,11.21]
[1720918494371,16.1734,145.06,145.04,11.21]
[1720918494548,16.1734,145.06,145.01,1.37893811]
[1720918494733,16.1734,145.06,145.02,1.37894398]
[1720918494933,16.1734,145.06,145.0,21.37893596]
[1720918495539,16.1734,145.06,145.01,45.0]
[1720918495733,16.1734,145.06,145.0,21.37882196]
[1720918496337,16.1734,145.06,145.0,20.0]
[1720918496528,16.1734,145.06,145.01,1.37896651]
[1720918496729,16.1734,145.06,144.98,20.0]
[1720918496929,16.1734,145.06,144.99,45.0]
[1720918497150,16.1734,145.06,145.0,20.0]
[1720918497853,16.1734,145.06,144.98,21.3791367]
[1720918498043,16.1734,145.06,144.99,1.37907803]
[1720918498635,16.1734,145.06,144.98,20.0]
[1720918498851,16.1734,145.06,144.99,1.37916477]
[1720918500770,16.1734,145.06,144.98,1.37908127]
[1720918500966,6.4955,145.05,144.95,22.41]
[1720918501137,6.4955,145.05,144.93,23.71095636]
[1720918501458,6.4955,145.05,144.94,1.3794458]
[1720918502642,6.4955,145.05,144.94,46.3794458]
[1720918503043,6.4955,145.05,144.95,20.0]
[1720918503238,6.4955,145.05,144.96,46.37932496]
[1720918503444,6.4955,145.05,144.97,20.0]
[1720918503646,6.4955,145.05,144.98,1.37916032]
[1720918503854,6.4955,145.05,144.99,1.37916099]
[1720918505152,6.4955,145.05,144.99,21.37916099]
[1720918507567,6.4955,145.05,145.0,45.0]
[1720918507858,6.4955,145.05,145.01,21.37893136]
[1720918508050,6.4955,145.05,145.01,20.0]
[1720918509153,6.4955,145.05,144.98,20.0]
[1720918509373,6.4955,145.05,144.99,45.0]
[1720918509654,6.4955,145.05,145.0,20.0]
[1720918510364,6.4955,145.05,145.01,1.37898145]
[1720918510567,21.8736,145.09,145.01,46.37898145]
[1720918510747,21.8736,145.09,145.02,20.0]
[1720918510941,21.8736,145.09,145.03,1.37873823]
[1720918512069,21.8736,145.09,145.03,46.37873823]
[1720918512359,21.8736,145.09,145.04,20.0]
[1720918512562,21.8736,145.09,145.05,1.37864551]
[1720918514537,2.77549227,145.15,145.05,46.37864551]
[1720918514744,21.8736,145.17,145.06,20.0]
[1720918514944,21.8736,145.17,145.07,1.37832033]
[1720918515145,21.8736,145.17,145.08,1.37832027]
[1720918516462,21.8736,145.17,145.07,1.37832139]
[1720918516643,21.8736,145.17,145.08,1.37832157]
[1720918516969,24.56179371,145.17,145.08,1.37832157]
[1720918517667,24.56179371,145.17,145.07,1.37831909]
[1720918517963,24.56179371,145.17,145.08,1.37831899]
[1720918518961,24.56179371,145.17,145.07,1.37831907]
[1720918519270,24.56179371,145.17,145.08,1.37831907]
[1720918519861,24.56179371,145.17,145.08,21.37831907]
[1720918520265,21.8736,145.17,145.09,45.0]
[1720918520449,21.8736,145.17,145.1,21.37802214]
[1720918520654,33.0636,145.17,145.12,11.19]
[1720918520855,11.19,145.16,145.12,11.19]
[1720918521452,33.0636,145.17,145.12,11.19]
[1720918521647,11.19,145.16,145.12,11.19]
[1720918522177,33.0636,145.17,145.12,11.19]
[1720918522553,21.8736,145.17,145.11,1.37802321]
[1720918523057,21.8736,145.17,145.1,20.0]
[1720918523462,21.8736,145.17,145.1,21.37817995]
[1720918523646,21.8736,145.17,145.06,21.37816916]
[1720918523853,21.8736,145.17,145.07,45.0]
[1720918524054,21.8736,145.17,145.08,21.37816784]
[1720918526047,21.8736,145.17,145.09,45.0]
[1720918526266,21.8736,145.17,145.1,21.37790168]
[1720918526481,21.8736,145.17,145.11,1.37792032]
[1720918527876,22.39,145.22,145.11,61.68282032]
[1720918527877,16.5177,145.2,145.11,61.68282032]
[1720918528071,16.5177,145.2,145.12,20.0]
[1720918528870,16.5177,145.2,145.13,1.37789399]
[1720918529393,16.5177,145.2,145.14,1.37777608]
[1720918529556,16.5177,145.2,145.14,21.37777608]
[1720918530288,16.5177,145.2,145.14,1.37777608]
[1720918530589,16.5177,145.2,145.13,45.0]
[1720918530888,16.5177,145.2,145.14,21.37765319]
[1720918531079,16.5177,145.2,145.15,1.37765319]
[1720918532687,16.5177,145.2,145.14,20.0]
[1720918532900,16.5177,145.2,145.12,20.0]
[1720918533054,16.5177,145.2,145.12,21.05405909]
[1720918533483,16.5177,145.2,145.12,1.05405909]
[1720918533690,16.5177,145.2,145.07,45.52055636]
[1720918533982,26.5177,145.2,145.07,23.13055636]
[1720918534154,29.0498,145.19,145.07,15.3049]
[1720918535588,29.0498,145.19,145.08,20.0]
[1720918536461,6.6598,145.19,145.09,1.37816555]
[1720918536661,6.6598,145.19,145.09,46.37816555]
[1720918536866,6.6598,145.19,145.1,20.0]
[1720918537286,57.4865,145.18,145.01,275.3861]
[1720918537470,22.39,145.16,145.02,22.39]
[1720918539272,22.39,145.16,145.03,20.0]
[1720918539598,47.4865,145.14,145.01,16.2861]
[1720918540175,38.8519,145.12,144.99,6.3445]
[1720918540493,38.8519,145.12,145.0,1.37892078]
[1720918540494,28.8519,145.12,145.0,1.37892078]
[1720918540673,6.4619,145.12,145.0,23.76892078]
[1720918541695,6.4619,145.12,145.01,20.0]
[1720918541895,6.4619,145.12,145.02,1.37874778]
[1720918542076,6.4619,145.12,145.03,1.37855944]
[1720918542387,6.4619,145.12,145.03,20.0]
[1720918542969,6.4619,145.12,145.04,46.20776251]
[1720918544996,6.4619,145.12,145.01,20.0]
[1720918545197,6.4619,145.12,145.02,45.0]
[1720918545399,6.4619,145.12,145.03,20.0]
[1720918545700,15.0965,145.14,145.05,38.6761]
[1720918545906,15.0965,145.14,145.06,21.37824262]
[1720918546194,15.0965,145.14,145.07,45.0]
[1720918546389,15.0965,145.14,145.08,21.37823228]
[1720918547397,21.5584,145.22,145.09,6.3445]
[1720918547599,21.5584,145.22,145.1,66.3778034]
[1720918547893,21.5584,145.22,145.11,1.37780329]
[1720918549697,56.68570761,145.22,145.11,1.37780329]
[1720918549894,45.0,145.21,145.11,1.37780329]
[1720918550076,46.68570761,145.22,145.11,1.37780329]
[1720918550275,24.29570761,145.22,145.11,1.37780329]
[1720918550476,24.29570761,145.22,145.1,65.0]
[1720918550905,24.29570761,145.22,145.11,1.37790745]
[1720918553379,21.5584,145.22,145.12,16.2861]
[1720918553587,21.5584,145.22,145.13,66.37761174]
[1720918553789,21.5584,145.22,145.13,65.0]
[1720918554801,21.5584,145.22,145.14,1.37768985]
[1720918554989,21.5584,145.22,145.15,1.37765573]
[1720918556100,21.5584,145.22,145.14,1.37765804]
[1720918556284,21.5584,145.22,145.15,1.37765885]
[1720918556682,21.5584,145.22,145.14,1.37768778]
[1720918556884,21.5584,145.22,145.13,65.0]
[1720918557576,2.70402281,145.24,145.13,65.0]
[1720918557777,28.4285,145.26,145.13,65.0]
[1720918557778,45.0,145.25,145.14,1.37762103]
[1720918557978,45.0,145.25,145.15,1.37759021]
[1720918559001,45.0,145.25,145.16,1.37758995]
[1720918559198,45.0,145.25,145.14,1.37758995]
[1720918559384,6.0385,145.26,145.15,1.37758972]
[1720918560405,17.94332671,145.27,145.16,16.4793]
[1720918560696,17.94332671,145.27,145.17,65.0]
[1720918561400,17.94332671,145.27,145.17,20.0]
[1720918561401,50.33332671,145.27,145.17,20.0]
[1720918561606,22.39,145.25,145.17,20.0]
[1720918561986,22.39,145.23,145.12,16.4793]
[1720918562190,10.0,145.22,145.12,16.4793]
[1720918562506,22.39,145.2,145.09,16.4793]
[1720918562998,60.1479,145.21,145.1,1.37802972]
[1720918564197,15.1479,145.21,145.1,20.0]
[1720918564701,15.1479,145.21,145.11,1.37782508]
[1720918564896,15.1479,145.21,145.11,46.37782508]
[1720918565101,15.1479,145.21,145.12,20.0]
[1720918565384,28.4285,145.24,145.13,1.37776128]
[1720918565586,28.4285,145.24,145.13,46.37776128]
[1720918565803,28.4285,145.24,145.14,20.0]
[1720918566121,28.4285,145.24,145.15,1.37764148]
[1720918566508,38.4285,145.24,145.15,1.37764148]
[1720918566701,38.4285,145.24,145.14,20.0]
[1720918566902,45.0,145.23,145.12,21.37779474]
[1720918567309,45.0,145.23,145.12,1.37779474]
[1720918567718,55.0,145.23,145.12,21.37779474]
[1720918568113,45.0,145.23,145.12,21.37779474]
[1720918570627,28.4285,145.24,145.13,45.0]
[1720918570806,28.4285,145.24,145.14,21.37764981]
[1720918571104,28.4285,145.24,145.15,1.3776391]
[1720918572709,28.4285,145.24,145.14,20.0]
[1720918572919,45.0,145.23,145.14,21.37779119]
[1720918573506,38.4285,145.24,145.14,21.37779119]
[1720918573828,38.4285,145.24,145.14,20.0]
[1720918574412,48.4285,145.24,145.14,20.0]
[1720918574617,45.0,145.23,145.11,21.37790956]
[1720918575513,28.4285,145.24,145.12,45.0]
[1720918575709,6.0385,145.24,145.14,16.4793]
[1720918575922,6.0385,145.24,145.15,21.37763751]
[1720918578008,22.39,145.25,145.16,6.0032]
[1720918578329,32.39,145.26,145.16,7.38084165]
[1720918578640,11.19,145.21,145.16,18.57081092]
[1720918579317,11.19,145.22,145.18,11.19]
[1720918579524,11.19,145.23,145.18,12.56734752]
[1720918579723,11.19,145.23,145.18,11.19]
[1720918580509,10.0,145.28,145.16,6.0032]
[1720918580723,22.37,145.27,145.17,20.0]
[1720918580930,22.37,145.25,145.17,20.0]
[1720918581130,32.9899,145.29,145.17,20.0]
[1720918581131,12.7153092,145.28,145.17,20.0]
[1720918581333,12.7153092,145.28,145.18,1.37737222]
[1720918581334,45.0,145.27,145.18,1.37737222]
[1720918581629,12.7153092,145.28,145.19,16.527]
[1720918585511,12.7153092,145.28,145.2,20.0]
[1720918586834,12.7153092,145.28,145.21,22.5302]
[1720918586835,2.7153092,145.28,145.21,22.5302]
[1720918587138,20.0,145.35,145.24,6.0032]
[1720918587322,20.0,145.35,145.25,20.0]
[1720918587513,10.0,145.33,145.25,20.0]
[1720918588406,22.37,145.34,145.25,20.0]
[1720918590713,22.37,145.34,145.26,1.37679219]
[1720918590944,22.37,145.34,145.25,20.0]
[1720918591343,2.71893134,145.35,145.26,17.50820171]
[1720918591643,43.2047028,145.37,145.27,20.0]
[1720918591821,20.0,145.34,145.26,16.527]
[1720918592017,45.0,145.33,145.26,16.527]
[1720918592636,22.37,145.31,145.26,16.527]
[1720918593015,45.0,145.33,145.26,16.527]
[1720918593218,67.37,145.33,145.26,16.527]
[1720918593523,10.0,145.32,145.26,16.527]
[1720918593735,45.0,145.31,145.26,16.527]
[1720918593922,67.37,145.31,145.26,16.527]
[1720918595243,22.37,145.31,145.26,16.527]
[1720918597245,42.37,145.35,145.26,16.527]
[1720918597448,10.0,145.33,145.26,16.527]
[1720918597655,22.37,145.32,145.26,16.527]
[1720918598256,22.37,145.36,145.27,1.37685133]
[1720918598559,22.37,145.36,145.26,16.527]
[1720918599427,10.0,145.34,145.26,16.527]
[1720918599742,10.0,145.36,145.26,16.527]
[1720918599940,10.0,145.34,145.26,16.527]
[1720918600132,45.0,145.33,145.26,16.527]
[1720918601031,67.37,145.33,145.26,16.527]
[1720918602144,45.0,145.33,145.26,16.527]
[1720918602350,22.37,145.32,145.26,16.527]
[1720918602533,45.0,145.31,145.26,16.527]
[1720918603127,22.37,145.32,145.26,16.527]
[1720918604333,45.0,145.31,145.26,16.527]
[1720918604545,55.0,145.31,145.26,16.527]
[1720918605136,22.37,145.3,145.26,16.527]
[1720918606754,10.0,145.29,145.22,16.6362]
[1720918606950,45.0,145.28,145.22,16.6362]
[1720918607137,67.37,145.28,145.22,16.6362]
[1720918607460,20.0,145.27,145.2,6.2998]
[1720918607661,45.0,145.26,145.2,6.2998]
[1720918608259,22.37,145.25,145.18,16.6362]
[1720918609160,22.37,145.25,145.19,1.37520839]
[1720918609331,22.37,145.27,145.18,16.6362]
[1720918609538,22.37,145.27,145.18,18.0115031]
[1720918610656,22.37,145.29,145.19,1.37732315]
[1720918610860,22.37,145.29,145.2,6.2998]
[1720918611066,32.37,145.29,145.2,6.2998]
[1720918611235,22.37,145.29,145.2,6.2998]
[1720918611760,32.37,145.29,145.2,6.2998]
[1720918611971,22.37,145.29,145.21,18.01345606]
[1720918612263,22.37,145.29,145.21,16.6362]
[1720918613258,45.0,145.28,145.21,16.6362]
[1720918614347,55.0,145.28,145.21,16.6362]
[1720918614853,22.37,145.26,145.21,16.6362]
[1720918615366,32.37,145.26,145.21,16.6362]
[1720918615552,45.0,145.25,145.21,16.6362]
[1720918616247,10.0,145.24,145.16,6.2998]
[1720918616553,45.0,145.25,145.17,16.6362]
[1720918618465,2.72322089,145.29,145.17,18.01375699]
[1720918618649,22.37,145.3,145.2,15.8206]
[1720918618850,22.37,145.3,145.21,1.37720433]
[1720918620346,22.37,145.3,145.2,17.19772064]
[1720918620663,32.37,145.3,145.2,17.19772064]
[1720918620841,45.0,145.29,145.2,15.8206]